{"text_format":"1","workbook":"xlsx","n_sheets":5,"sheets":["Sheet1","PraktisInput","ProjBM","RankBM","CListBM"],"not_rendered":{"charts":3,"images":6,"macros":1,"external_links":1,"defined_names":4,"comments":0,"pivot_tables":0},"unopened":[],"bounds":{"document_bytes":16777216,"sheet_cells":100000,"rows_first":2000,"rows_last":500,"rows_between":2000,"halvings":0,"cell_chars":16384,"cell_head_chars":4096},"cells_cut":0,"cells_raw":0,"read":"whole","date_system":"1900"}

{"sheet":"Sheet1","index":0,"n_rows":13,"n_cols":9,"rows_kept":13,"cut":false,"hidden":false,"merged":[[7,7,8,9],[9,7,9,9],[12,7,14,9]]}
[]
[]
[]
[]
[]
[]
[]
[null,null,null,null,null,null,null,"If you are unable to see the Welcome Message, it may be that your Excel has not been Macro-enabled."]
[]
[null,null,null,null,null,null,null,"Try clicking the Enable Content at the top ↑."]
[]
[null,null,null,null,null,null,null,null,"Or you may have to change the following in your Excel:"]
[null,null,null,null,null,null,null,"File -> Options -> Trust Center -> Trust Center Settings -> Macro Settings -> Select \"Disable all macros with notification\" -> OK"]

{"sheet":"PraktisInput","index":1,"n_rows":28,"n_cols":56,"rows_kept":28,"cut":false,"hidden":false,"merged":[[0,55,5,55],[10,3,10,54],[0,2,1,2],[0,3,0,54],[1,1,2,1],[1,3,1,7],[1,8,1,11],[1,12,1,15],[1,16,1,20],[1,21,1,24],[1,25,1,28],[1,29,1,33],[1,34,1,37],[1,38,1,42],[1,43,1,46],[1,47,1,50],[1,51,1,54],[23,0,25,0],[23,1,25,1],[26,0,28,0],[26,1,28,1],[15,0,16,0],[15,1,16,1],[17,0,19,0],[17,1,19,1],[20,0,22,0],[20,1,22,1]]}
["Key in the Inputs and observe the Chart",null,"Target","WEEK INPUT",null,null,null,null,null,null,null,null,null,null,null,null,null,null,null,null,null,null,null,null,null,null,null,null,null,null,null,null,null,null,null,null,null,null,null,null,null,null,null,null,null,null,null,null,null,null,null,null,null,null,null,{"$f":"YEAR(TODAY())","v":2022}]
[null,"KPI",null,"January",null,null,null,null,"February",null,null,null,"March",null,null,null,"April",null,null,null,null,"May",null,null,null,"June",null,null,null,"July",null,null,null,null,"August",null,null,null,"September",null,null,null,null,"October",null,null,null,"November",null,null,null,"December"]
[null,null,"Wk",1,2,3,4,5,6,7,8,9,10,11,12,13,14,15,16,17,18,19,20,21,22,23,24,25,26,27,28,29,30,31,32,33,34,35,36,37,38,39,40,41,42,43,44,45,46,47,48,49,50,51,52]
[1,"Revenue (RM Million)",275]
[2,"3 x Awareness Campaign Project (%)",100]
[3,"Equipment Maintenance level vis-à-vis schedule (%)",90]
[]
[null,"Target",{"$f":"C4","v":275},{"$f":"C8","v":275},{"$f":"D8","v":275},275,275,275,275,275,275,275,275,275,275,275,275,275,275,275,275,275,275,275,275,275,275,275,275,275,275,275,275,275,275,275,275,275,275,275,275,275,275,275,275,275,275,275,275,275,275,275,275,275,275]
[null,"Target",{"$f":"C5","v":100},{"$f":"C9","v":100},100,100,100,100,100,100,100,100,100,100,100,100,100,100,100,100,100,100,100,100,100,100,100,100,100,100,100,100,100,100,100,100,100,100,100,100,100,100,100,100,100,100,100,100,100,100,100,100,100,100,100]
[null,"Target",{"$f":"C6","v":90},{"$f":"C10","v":90},90,90,90,90,90,90,90,90,90,90,90,90,90,90,90,90,90,90,90,90,90,90,90,90,90,90,90,90,90,90,90,90,90,90,90,90,90,90,90,90,90,90,90,90,90,90,90,90,90,90,90]
[null,"KPI",null,"Chart",null,null,null,null,null,null,null,null,null,null,null,null,null,null,null,null,null,null,null,null,null,null,null,null,null,null,null,null,null,null,null,null,null,null,null,null,null,null,null,null,null,null,null,null,null,null,null,null,null,null,null,"Score"]
[1,{"$f":"B4","v":"Revenue (RM Million)"},null,null,null,null,null,null,null,null,null,null,null,null,null,null,null,null,null,null,null,null,null,null,null,null,null,null,null,null,null,null,null,null,null,null,null,null,null,null,null,null,null,null,null,null,null,null,null,null,null,null,null,null,null,{"$f":"BD26","v":0}]
[2,{"$f":"B5","v":"3 x Awareness Campaign Project (%)"},null,null,null,null,null,null,null,null,null,null,null,null,null,null,null,null,null,null,null,null,null,null,null,null,null,null,null,null,null,null,null,null,null,null,null,null,null,null,null,null,null,null,null,null,null,null,null,null,null,null,null,null,null,{"$f":"BD27","v":0}]
[3,{"$f":"B6","v":"Equipment Maintenance level vis-à-vis schedule (%)"},null,null,null,null,null,null,null,null,null,null,null,null,null,null,null,null,null,null,null,null,null,null,null,null,null,null,null,null,null,null,null,null,null,null,null,null,null,null,null,null,null,null,null,null,null,null,null,null,null,null,null,null,null,{"$f":"BD28","v":""}]
[]
["KPI","Score %"]
[]
[1,{"$f":"BD12","v":0}]
[null,null,null,{"$f":"IF(OR(D4<>\"\",E19),TRUE,FALSE)","v":false},false,false,false,false,false,false,false,false,false,false,false,false,false,false,false,false,false,false,false,false,false,false,false,false,false,false,false,false,false,false,false,false,false,false,false,false,false,false,false,false,false,false,false,false,false,false,false,false,false,false,{"$f":"IF(BC4=\"\",FALSE,TRUE)","v":false}]
[null,null,0,{"$f":"IF(D$19,IF(D4=\"\",C20,D4),\"\")","v":""},"","","","","","","","","","","","","","","","","","","","","","","","","","","","","","","","","","","","","","","","","","","","","","","","","","","",{"$f":"MAX(C20:BC20)","v":0}]
[2,{"$f":"BD13","v":0},null,{"$f":"IF(OR(D5<>\"\",E21),TRUE,FALSE)","v":false},false,false,false,false,false,false,false,false,false,false,false,false,false,false,false,false,false,false,false,false,false,false,false,false,false,false,false,false,false,false,false,false,false,false,false,false,false,false,false,false,false,false,false,false,false,false,false,false,false,{"$f":"IF(OR(BB5<>\"\",BC21),TRUE,FALSE)","v":false},{"$f":"IF(BC5=\"\",FALSE,TRUE)","v":false}]
[null,null,0,{"$f":"IF(D$21,IF(D5=\"\",C22,D5),\"\")","v":""},{"$f":"IF(E$21,IF(E5=\"\",D22,E5),\"\")","v":""},{"$f":"IF(F$21,IF(F5=\"\",E22,F5),\"\")","v":""},"","","","","","","","","","","","","","","","","","","","","","","","","","","","","","","","","","","","","","","","","","","","","","","","","",{"$f":"MAX(C22:BC22)","v":0}]
[null,null,null,{"$f":"IF(D6=\"\",\"\",D6)","v":""},{"$f":"IF(E6=\"\",\"\",E6)","v":""},"","","","","","","","","","","","","","","","","","","","","","","","","","","","","","","","","","","","","","","","","","","","","","","","","","",{"$f":"IFERROR(AVERAGE(D23:BC23),\"\")","v":""}]
[3,{"$f":"BD14","v":""}]
[]
[null,null,null,{"$f":"IF(D20=\"\",\"\",D20/D8)","v":""},"","","","","","","","","","","","","","","","","","","","","","","","","","","","","","","","","","","","","","","","","","","","","","","","","","","",{"$f":"IF(MAX(C26:BC26)>1,1,MAX(C26:BC26))","v":0}]
["TOTAL",{"$f":"AVERAGE(B18:B26)","v":0},null,{"$f":"IF(D22=\"\",\"\",D22/D9)","v":""},"","","","","","","","","","","","","","","","","","","","","","","","","","","","","","","","","","","","","","","","","","","","","","","","","","","",{"$f":"IF(MAX(C27:BC27)>1,1,MAX(C27:BC27))","v":0}]
[null,null,null,{"$f":"IF(D23=\"\",\"\",(D23/D10)^10)","v":""},"","","","","",{"$f":"IF(J23=\"\",\"\",(J23/J10)^10)","v":""},{"$f":"IF(K23=\"\",\"\",(K23/K10)^10)","v":""},"","","","","","","","","","","","","","","","","","","","","","","","","","","","","","","","","","","","","","","","","","","","",{"$f":"IFERROR(IF(AVERAGE(D28:BC28)>1,1,AVERAGE(D28:BC28)),\"\")","v":""}]

{"sheet":"ProjBM","index":2,"n_rows":54,"n_cols":298,"rows_kept":54,"cut":false,"hidden":false,"merged":[[42,2,42,4],[42,6,42,9],[43,2,43,4],[43,6,43,9],[39,2,39,4],[39,6,39,9],[40,2,40,4],[40,6,40,9],[41,2,41,4],[41,6,41,9],[36,2,36,4],[36,6,36,9],[37,2,37,4],[37,6,37,9],[38,2,38,4],[38,6,38,9],[33,2,33,4],[33,6,33,9],[34,2,34,4],[34,6,34,9],[35,2,35,4],[35,6,35,9],[30,2,30,4],[30,6,30,9],[31,2,31,4],[31,6,31,9],[32,2,32,4],[32,6,32,9],[27,2,27,4],[27,6,27,9],[28,2,28,4],[28,6,28,9],[29,2,29,4],[29,6,29,9],[24,2,24,4],[24,6,24,9],[25,2,25,4],[25,6,25,9],[26,2,26,4],[26,6,26,9],[21,2,21,4],[21,6,21,9],[22,2,22,4],[22,6,22,9],[23,2,23,4],[23,6,23,9],[18,2,18,4],[18,6,18,9],[19,2,19,4],[19,6,19,9],[20,2,20,4],[20,6,20,9],[15,2,15,4],[15,6,15,9],[16,2,16,4],[16,6,16,9],[17,2,17,4],[17,6,17,9],[11,6,11,9],[12,2,12,4],[12,6,12,9],[13,2,13,4],[13,6,13,9],[14,2,14,4],[14,6,14,9],[7,29,8,29],[7,31,8,31],[7,33,8,33],[8,2,8,4],[9,2,9,4],[9,6,9,9],[9,33,43,33],[10,2,10,4],[10,6,10,9],[11,2,11,4],[5,2,7,2],[5,14,5,16],[5,20,5,21],[5,25,5,26],[7,6,7,9],[7,13,7,17],[7,19,7,22],[7,24,7,27],[0,5,0,9],[0,13,0,26],[1,11,1,13],[2,11,3,26],[4,20,4,21],[4,25,4,26]]}
[null,null,"Simple PROJECT Simpeo Benchmarks Series",null,null,{"$f":"YEAR(TODAY())","v":2022},null,null,null,null,null,null,null,"PERFORMA INCORPORATION LIMITED"]
[null,null,"Name:",null,null,null,null,null,null,null,"KPI ID:",{"$f":"IF(Q2,P2,\"\")","v":""},null,null,{"$f":"MID(CELL(\"filename\",A2),FIND(\"]\",CELL(\"filename\",A2))+1,255)","v":"ProjBM"},{"$f":"LEFT(O2,5)","v":"ProjB"},{"$f":"IF(LEN(O2)=5,TRUE,FALSE)","v":false},null,null,null,null,null,null,null,null,null,null,null,null,null,null,null,null,null,null,null,{"$f":"IF(AK4=\"N/A\",\"N/A\",\"Ok\")","v":"N/A"}]
[null,null,"Position:",null,null,null,null,null,null,null,"KPI Description:",null,null,null,null,null,null,null,null,null,null,null,null,null,null,null,null,null,null,null,null,null,null,null,null,null,{"$f":"IF(AK5=\"N/A\",\"N/A\",\"Ok\")","v":"N/A"}]
[null,null,"Department:",null,null,null,null,null,null,null,null,null,null,null,null,null,null,null,null,null,null,null,null,null,null,null,null,null,null,null,null,null,null,null,null,null,{"$f":"IFERROR(CHOOSE(L5,\"L\",\"M\",\"N\",\"O\",\"P\",\"Q\",\"R\",\"S\",\"T\",\"U\",\"V\",\"W\",\"X\",\"Y\",\"Z\",\"AA\",\"AB\",\"AC\",\"AD\",\"AE\",\"AF\",\"AG\",\"AH\",\"AI\",\"AJ\",\"AK\",\"AL\",\"AM\",\"AN\",\"AO\",\"AP\",\"AQ\",\"AR\",\"AS\",\"AT\",\"AU\",\"AV\",\"AW\",\"AX\",\"AY\",\"AZ\",\"BA\",\"BB\",\"BC\",\"BD\",\"BE\",\"BF\",\"BG\",\"BH\",\"BI\",\"BJ\",\"BK\",\"BK\"),\"N/A\")","v":"N/A"}]
[null,null,"Score:","Deadline Week:",null,null,null,null,null,null,"Selected Week:",null,null,null,null,"%",null,null,null,null,"%",null,null,null,null,"%",null,null,null,null,null,"%",null,null,null,null,{"$f":"IFERROR(CHOOSE(RIGHT(L2,2),5,6,7,8,9,10,11,12,13,14,15,16,17,18,19),\"N/A\")","v":"N/A"}]
[null,null,{"$f":"IFERROR(AF45/100*AF47,\"\")","v":""},null,null,null,null,null,null,null,null,null,null,null,80,null,null,null,null,null,10,null,null,null,null,10,null,null,null,null,null,{"$f":"O6+U6+Z6","v":100}]
[]
[null,null,null,null,null,null,"Weight Size",null,null,null,null,null,null,"Task Completion",null,null,null,null,null,"Work Quality",null,null,null,null,"Timeliness/Budget",null,null,null,null,"Forget",null,"Line\nScore",null,"Remarks"]
["Title","No","Task Description",null,null,null,"⍟   1x","⍟⍟  2x","⍟⍟⍟ 3x","⍟⍟⍟⍟ 4x",null,"Weight\n%",null,"Not Started","Started","In Progress","Advanced","Completed",null,"Not Used","«  Poor","«« Fair","«««Meet",null,"Not Used","«  Poor","«« Fair","«««Meet",null,null,null,null,null,null,null,"H","W","C","Q","B","F","H","C","Q","B","Full Line Total","C","Q","B"]
["¨",null,null,null,null,null,null,null,null,null,{"$f":"IF(OR(C10=\"\",AJ10,AO10),0,AK10)","v":0},{"$f":"K10/K$45*100","v":0},null,null,null,null,null,null,null,null,null,null,null,null,null,null,null,null,null,null,null,{"$f":"IFERROR(L10*AY10,\"N/A\")","v":0},null,null,null,{"$f":"IF($A10=\"þ\",TRUE,FALSE)","v":false},{"$f":"IFERROR(VALUE(LEFT($G10,1)),0)","v":0},1,4,4,false,{"$f":"IF(AJ10,0,1)","v":1},{"$f":"O$6","v":80},{"$f":"IF(AM10=1,0,U$6)","v":10},{"$f":"IF(AN10=1,0,Z$6)","v":10},{"$f":"SUM(AQ10:AS10)","v":100},{"$f":"(AL10-1)/4*AQ10","v":0},{"$f":"(AL10-1)/4*(AM10-1)/3*AR10","v":0},{"$f":"(AL10-1)/4*(AN10-1)/3*AS10","v":0},{"$f":"SUM(AU10:AW10)","v":0},{"$f":"IFERROR(AX10/AT10,\"N/A\")","v":0}]
["¨",null,null,null,null,null,null,null,null,null,0,0,null,null,null,null,null,null,null,null,null,null,null,null,null,null,null,null,null,null,null,0,null,null,null,{"$f":"IF($A11=\"þ\",TRUE,FALSE)","v":false},{"$f":"IFERROR(VALUE(LEFT($G11,1)),0)","v":0},1,4,4,false,1,80,10,10,100,{"$f":"(AL11-1)/4*AQ11","v":0},{"$f":"(AL11-1)/4*(AM11-1)/3*AR11","v":0},{"$f":"(AL11-1)/4*(AN11-1)/3*AS11","v":0},0,0]
["¨",null,null,null,null,null,null,null,null,null,0,0,null,null,null,null,null,null,null,null,null,null,null,null,null,null,null,null,null,null,null,0,null,null,null,false,0,1,4,4,false,1,80,10,10,100,0,0,0,0,0]
["¨",null,null,null,null,null,null,null,null,null,0,0,null,null,null,null,null,null,null,null,null,null,null,null,null,null,null,null,null,null,null,0,null,null,null,false,0,1,4,4,false,1,80,10,10,100,0,0,0,0,0]
["¨",null,null,null,null,null,null,null,null,null,0,0,null,null,null,null,null,null,null,null,null,null,null,null,null,null,null,null,null,null,null,0,null,null,null,false,0,1,4,4,false,1,80,10,10,100,0,0,0,0,0]
["¨",null,null,null,null,null,null,null,null,null,0,0,null,null,null,null,null,null,null,null,null,null,null,null,null,null,null,null,null,null,null,0,null,null,null,false,0,1,4,4,false,1,80,10,10,100,0,0,0,0,0]
["¨",null,null,null,null,null,null,null,null,null,0,0,null,null,null,null,null,null,null,null,null,null,null,null,null,null,null,null,null,null,null,0,null,null,null,false,0,1,4,4,false,1,80,10,10,100,0,0,0,0,0]
["¨",null,null,null,null,null,null,null,null,null,0,0,null,null,null,null,null,null,null,null,null,null,null,null,null,null,null,null,null,null,null,0,null,null,null,false,0,1,4,4,false,1,80,10,10,100,0,0,0,0,0]
["¨",null,null,null,null,null,null,null,null,null,0,0,null,null,null,null,null,null,null,null,null,null,null,null,null,null,null,null,null,null,null,0,null,null,null,false,0,1,4,4,false,1,80,10,10,100,0,0,0,0,0]
["¨",null,null,null,null,null,null,null,null,null,0,0,null,null,null,null,null,null,null,null,null,null,null,null,null,null,null,null,null,null,null,0,null,null,null,false,0,1,4,4,false,1,80,10,10,100,0,0,0,0,0]
["¨",null,null,null,null,null,null,null,null,null,0,0,null,null,null,null,null,null,null,null,null,null,null,null,null,null,null,null,null,null,null,0,null,null,null,false,0,1,4,4,false,1,80,10,10,100,0,0,0,0,0,null,null,null,null,null,null,null,null,null,null,null,null,null,null,null,null,null,null,null,null,null,null,null,null,null,null,null,null,null,null,null,null,null,null,null,null,null,null,null,null,null,null,null,null,null,null,null,null,null,null,null,null,null,null,null,null,null,null,null,null,null,null,null,null,null,null,null,null,null,null,null,null,null,null,null,null,null,null,null,null,null,null,null,null,null,null,null,null,null,null,null,null,null,null,null,null,null,null,null,null,null,null,null,null,null,null,null,null,null,null,null,null,null,null,null,null,null,null,null,null,null,null,null,null,null,null,null,null,null,null,null,null,null,null,null,null,null,null,null,null,null,null,null,null,null,null,null,null,null,null,null,null,null,null,null,null,null,null,null,null,null,null,null,null,null,null,null,null,null,null,null,null,null,null,null,null,null,null,null,null,null,null,null,null,null,null,null,null,null,null,null,null,null,null,null,null,null,null,null,null,null,null,null,null,null,null,null,null,null,null,null,null,null,null,null,null,null,null,null,null,null,null,null,null,null,null,null,null,null,null,null,null,null,null,null,null,null,null,null,null,null,null,null,null,null,null,true]
["¨",null,null,null,null,null,null,null,null,null,0,0,null,null,null,null,null,null,null,null,null,null,null,null,null,null,null,null,null,null,null,0,null,null,null,false,0,1,4,4,false,1,80,10,10,100,0,0,0,0,0]
["¨",null,null,null,null,null,null,null,null,null,0,0,null,null,null,null,null,null,null,null,null,null,null,null,null,null,null,null,null,null,null,0,null,null,null,false,0,1,4,4,false,1,80,10,10,100,0,0,0,0,0]
["¨",null,null,null,null,null,null,null,null,null,0,0,null,null,null,null,null,null,null,null,null,null,null,null,null,null,null,null,null,null,null,0,null,null,null,false,0,1,4,4,false,1,80,10,10,100,0,0,0,0,0]
["¨",null,null,null,null,null,null,null,null,null,0,0,null,null,null,null,null,null,null,null,null,null,null,null,null,null,null,null,null,null,null,0,null,null,null,false,0,1,4,4,false,1,80,10,10,100,0,0,0,0,0]
["¨",null,null,null,null,null,null,null,null,null,0,0,null,null,null,null,null,null,null,null,null,null,null,null,null,null,null,null,null,null,null,0,null,null,null,false,0,1,4,4,false,1,80,10,10,100,0,0,0,0,0]
["¨",null,null,null,null,null,null,null,null,null,0,0,null,null,null,null,null,null,null,null,null,null,null,null,null,null,null,null,null,null,null,0,null,null,null,false,0,1,4,4,false,1,80,10,10,100,0,0,0,0,0]
["¨",null,null,null,null,null,null,null,null,null,0,0,null,null,null,null,null,null,null,null,null,null,null,null,null,null,null,null,null,null,null,0,null,null,null,false,0,1,4,4,false,1,80,10,10,100,0,0,0,0,0]
["¨",null,null,null,null,null,null,null,null,null,0,0,null,null,null,null,null,null,null,null,null,null,null,null,null,null,null,null,null,null,null,0,null,null,null,false,0,1,4,4,false,1,80,10,10,100,0,0,0,0,0]
["¨",null,null,null,null,null,null,null,null,null,0,0,null,null,null,null,null,null,null,null,null,null,null,null,null,null,null,null,null,null,null,0,null,null,null,false,0,1,4,4,false,1,80,10,10,100,0,0,0,0,0]
["¨",null,null,null,null,null,null,null,null,null,0,0,null,null,null,null,null,null,null,null,null,null,null,null,null,null,null,null,null,null,null,0,null,null,null,false,0,1,4,4,false,1,80,10,10,100,0,0,0,0,0]
["¨",null,null,null,null,null,null,null,null,null,0,0,null,null,null,null,null,null,null,null,null,null,null,null,null,null,null,null,null,null,null,0,null,null,null,false,0,1,4,4,false,1,80,10,10,100,0,0,0,0,0]
["¨",null,null,null,null,null,null,null,null,null,0,0,null,null,null,null,null,null,null,null,null,null,null,null,null,null,null,null,null,null,null,0,null,null,null,false,0,1,4,4,false,1,80,10,10,100,0,0,0,0,0]
["¨",null,null,null,null,null,null,null,null,null,0,0,null,null,null,null,null,null,null,null,null,null,null,null,null,null,null,null,null,null,null,0,null,null,null,false,0,1,4,4,false,1,80,10,10,100,0,0,0,0,0]
["¨",null,null,null,null,null,null,null,null,null,0,0,null,null,null,null,null,null,null,null,null,null,null,null,null,null,null,null,null,null,null,0,null,null,null,false,0,1,4,4,false,1,80,10,10,100,0,0,0,0,0]
["¨",null,null,null,null,null,null,null,null,null,0,0,null,null,null,null,null,null,null,null,null,null,null,null,null,null,null,null,null,null,null,0,null,null,null,false,0,1,4,4,false,1,80,10,10,100,0,0,0,0,0]
["¨",null,null,null,null,null,null,null,null,null,0,0,null,null,null,null,null,null,null,null,null,null,null,null,null,null,null,null,null,null,null,0,null,null,null,false,0,1,4,4,false,1,80,10,10,100,0,0,0,0,0]
["¨",null,null,null,null,null,null,null,null,null,0,0,null,null,null,null,null,null,null,null,null,null,null,null,null,null,null,null,null,null,null,0,null,null,null,false,0,1,4,4,false,1,80,10,10,100,0,0,0,0,0]
["¨",null,null,null,null,null,null,null,null,null,0,0,null,null,null,null,null,null,null,null,null,null,null,null,null,null,null,null,null,null,null,0,null,null,null,false,0,1,4,4,false,1,80,10,10,100,0,0,0,0,0]
["¨",null,null,null,null,null,null,null,null,null,0,0,null,null,null,null,null,null,null,null,null,null,null,null,null,null,null,null,null,null,null,0,null,null,null,false,0,1,4,4,false,1,80,10,10,100,0,0,0,0,0]
["¨",null,null,null,null,null,null,null,null,null,0,0,null,null,null,null,null,null,null,null,null,null,null,null,null,null,null,null,null,null,null,0,null,null,null,false,0,1,4,4,false,1,80,10,10,100,0,0,0,0,0]
["¨",null,null,null,null,null,null,null,null,null,0,0,null,null,null,null,null,null,null,null,null,null,null,null,null,null,null,null,null,null,null,0,null,null,null,false,0,1,4,4,false,1,80,10,10,100,0,0,0,0,0]
["¨",null,null,null,null,null,null,null,null,null,0,0,null,null,null,null,null,null,null,null,null,null,null,null,null,null,null,null,null,null,null,0,null,null,null,false,0,1,4,4,false,1,80,10,10,100,0,0,0,0,0]
["¨",null,null,null,null,null,null,null,null,null,0,0,null,null,null,null,null,null,null,null,null,null,null,null,null,null,null,null,null,null,null,0,null,null,null,false,0,1,4,4,false,1,80,10,10,100,0,0,0,0,0]
["¨",null,null,null,null,null,null,null,null,null,0,0,null,null,null,null,null,null,null,null,null,null,null,null,null,null,null,null,null,null,null,0,null,null,null,false,0,1,4,4,false,1,80,10,10,100,0,0,0,0,0]
[null,null,null,null,null,null,null,null,null,null,{"$f":"IF(SUM(K10:K44)=0,1,SUM(K10:K44))","v":1},{"$f":"SUM(L10:L44)","v":0},null,null,null,null,null,null,null,null,null,null,null,null,null,null,null,null,null,null,null,{"$f":"IFERROR(SUM(AF10:AF44)/L45*100,\"N/A\")","v":"N/A"}]
[]
[null,null,null,null,null,null,null,null,null,null,null,null,null,null,null,null,null,null,null,null,null,null,null,null,null,null,null,null,null,"Use Base:",null,100]
[]
[null,null,null,null,null,null,null,null,null,null,null,null,null,null,null,null,null,"A form by Leadersense Consulting & Systems Sdn Bhd @2017"]
[null,null,null,null,null,null,0]
[null,null,null,null,null,null,"1x ⍟"]
[null,null,null,null,null,null,"2x ⍟⍟"]
[null,null,null,null,null,null,"3x ⍟⍟⍟"]
[null,null,null,null,null,null,"4x ⍟⍟⍟⍟"]

{"sheet":"RankBM","index":3,"n_rows":65,"n_cols":298,"rows_kept":65,"cut":false,"hidden":false,"merged":[[42,12,54,12],[43,2,43,5],[44,2,44,5],[45,2,45,5],[46,2,46,5],[47,2,47,5],[48,2,48,5],[49,2,49,5],[50,2,50,5],[51,2,51,5],[42,10,54,10],[41,2,41,4],[41,5,41,9],[42,0,54,0],[42,2,42,5],[42,7,54,9],[52,2,52,5],[53,2,53,5],[54,2,54,5],[26,10,38,10],[26,12,38,12],[27,2,27,5],[28,2,28,5],[29,2,29,5],[30,2,30,5],[31,2,31,5],[32,2,32,5],[33,2,33,5],[34,2,34,5],[25,2,25,4],[25,5,25,9],[26,0,38,0],[26,2,26,5],[26,7,38,9],[35,2,35,5],[36,2,36,5],[37,2,37,5],[38,2,38,5],[10,0,22,0],[10,2,10,5],[10,7,22,9],[10,10,22,10],[16,2,16,5],[17,2,17,5],[18,2,18,5],[19,2,19,5],[20,2,20,5],[22,2,22,5],[10,12,22,12],[11,2,11,5],[12,2,12,5],[13,2,13,5],[14,2,14,5],[15,2,15,5],[21,2,21,5],[0,3,1,9],[0,47,0,48],[3,4,5,10],[7,6,7,9],[9,2,9,4],[9,5,9,9]]}
[null,"SIMPLE RANKING Simpeo Benchmarks Series",null,"PERFORMA INCORPORATION LIMITED"]
[null,{"$f":"YEAR(TODAY())","v":2022}]
[null,null,null,"KPI ID:",{"$f":"IF(H3,G3,\"\")","v":""},{"$f":"MID(CELL(\"filename\",A2),FIND(\"]\",CELL(\"filename\",A2))+1,255)","v":"RankBM"},{"$f":"LEFT(F3,5)","v":"RankB"},{"$f":"IF(LEN(F3)=5,TRUE,FALSE)","v":false}]
[null,"Name:",null,"KPI Description:",null,null,null,null,null,null,null,null,null,null,null,null,null,null,null,null,null,null,null,null,null,null,null,null,null,null,null,null,null,null,null,null,null,null,null,null,null,null,null,null,null,null,null,{"$f":"IF(AV6=\"N/A\",\"N/A\",\"Ok\")","v":"N/A"}]
[null,"Position:",null,null,null,null,null,null,null,null,null,null,null,null,null,null,null,null,null,null,null,null,null,null,null,null,null,null,null,null,null,null,null,null,null,null,null,null,null,null,null,null,null,null,null,null,null,{"$f":"IF(AV7=\"N/A\",\"N/A\",\"Ok\")","v":"N/A"}]
[null,"Department:",null,null,null,null,null,null,null,null,null,null,null,null,null,null,null,null,null,null,null,null,null,null,null,null,null,null,null,null,null,null,null,null,null,null,null,null,null,null,null,null,null,null,null,null,null,{"$f":"IFERROR(CHOOSE(E7,\"L\",\"M\",\"N\",\"O\",\"P\",\"Q\",\"R\",\"S\",\"T\",\"U\",\"V\",\"W\",\"X\",\"Y\",\"Z\",\"AA\",\"AB\",\"AC\",\"AD\",\"AE\",\"AF\",\"AG\",\"AH\",\"AI\",\"AJ\",\"AK\",\"AL\",\"AM\",\"AN\",\"AO\",\"AP\",\"AQ\",\"AR\",\"AS\",\"AT\",\"AU\",\"AV\",\"AW\",\"AX\",\"AY\",\"AZ\",\"BA\",\"BB\",\"BC\",\"BD\",\"BE\",\"BF\",\"BG\",\"BH\",\"BI\",\"BJ\",\"BK\",\"BK\"),\"N/A\")","v":"N/A"}]
[null,"Score:",null,"Selected Week:",null,null,null,null,null,null,null,null,null,null,null,null,null,null,null,null,null,null,null,null,null,null,null,null,null,null,null,null,null,null,null,null,null,null,null,null,null,null,null,null,null,null,null,{"$f":"IFERROR(CHOOSE(RIGHT(E3,2),5,6,7,8,9,10,11,12,13,14,15,16,17,18,19),\"N/A\")","v":"N/A"}]
[null,{"$f":"IFERROR(K56/100*K58,\"\")","v":""},"Rank Description",null,null,null,"Weightage %",null,null,null,"Total %",null,"Remarks"]
[null,null,null,null,null,"Off","1«","2«","3«","4«"]
[null,"A","Type in the Title Desription A here",null,null,"Off",null,null,null,null,null,null,null,null,null,null,null,null,null,null,null,null,null,null,null,null,null,null,null,null,null,null,null,null,null,null,null,null,null,null,null,null,null,null,null,null,null,"Sel Wgt",{"$f":"IFERROR(VALUE(LEFT(F10,1))+1,1)","v":1},{"$f":"AW10-1","v":0},{"$f":"AX10/AX61*100","v":{"$error":"#DIV/0!"}},{"$f":"IFERROR(AY10,\"N/A\")","v":"N/A"}]
["(Zero)Worst <--- Rank ---> Best(Full)","Best = 1",null,null,null,null,null,{"$f":"IF(AZ10=0,\"N/A\",AZ10)","v":"N/A"},null,null,{"$f":"IF(H11=\"N/A\",\"N/A\",AZ11)","v":"N/A"},null,null,null,null,null,null,null,null,null,null,null,null,null,null,null,null,null,null,null,null,null,null,null,null,null,null,null,null,null,null,null,null,null,null,null,null,"Sel Rank",11,{"$f":"IF(C11=\"\",0,1)","v":0},{"$f":"AW11-(14-AX24)","v":-3},{"$f":"IFERROR(AY10*AY12/AY24,\"N/A\")","v":"N/A"},{"$f":"IF(AZ11=\"N/A\",0,AZ11)","v":0}]
[null,2,null,null,null,null,null,null,null,null,null,null,null,null,null,null,null,null,null,null,null,null,null,null,null,null,null,null,null,null,null,null,null,null,null,null,null,null,null,null,null,null,null,null,null,null,null,null,null,{"$f":"IF(C12=\"\",0,1)","v":0},{"$f":"IF(AY11<0,0,AY11)","v":0}]
[null,3,null,null,null,null,null,null,null,null,null,null,null,null,null,null,null,null,null,null,null,null,null,null,null,null,null,null,null,null,null,null,null,null,null,null,null,null,null,null,null,null,null,null,null,null,null,null,null,0]
[null,4,null,null,null,null,null,null,null,null,null,null,null,null,null,null,null,null,null,null,null,null,null,null,null,null,null,null,null,null,null,null,null,null,null,null,null,null,null,null,null,null,null,null,null,null,null,null,null,0]
[null,5,null,null,null,null,null,null,null,null,null,null,null,null,null,null,null,null,null,null,null,null,null,null,null,null,null,null,null,null,null,null,null,null,null,null,null,null,null,null,null,null,null,null,null,null,null,null,null,0]
[null,6,null,null,null,null,null,null,null,null,null,null,null,null,null,null,null,null,null,null,null,null,null,null,null,null,null,null,null,null,null,null,null,null,null,null,null,null,null,null,null,null,null,null,null,null,null,null,null,0]
[null,7,null,null,null,null,null,null,null,null,null,null,null,null,null,null,null,null,null,null,null,null,null,null,null,null,null,null,null,null,null,null,null,null,null,null,null,null,null,null,null,null,null,null,null,null,null,null,null,0]
[null,8,null,null,null,null,null,null,null,null,null,null,null,null,null,null,null,null,null,null,null,null,null,null,null,null,null,null,null,null,null,null,null,null,null,null,null,null,null,null,null,null,null,null,null,null,null,null,null,0]
[null,9,null,null,null,null,null,null,null,null,null,null,null,null,null,null,null,null,null,null,null,null,null,null,null,null,null,null,null,null,null,null,null,null,null,null,null,null,null,null,null,null,null,null,null,null,null,null,null,0]
[null,10,null,null,null,null,null,null,null,null,null,null,null,null,null,null,null,null,null,null,null,null,null,null,null,null,null,null,null,null,null,null,null,null,null,null,null,null,null,null,null,null,null,null,null,null,null,null,null,0,null,null,null,null,null,null,null,null,null,null,null,null,null,null,null,null,null,null,null,null,null,null,null,null,null,null,null,null,null,null,null,null,null,null,null,null,null,null,null,null,null,null,null,null,null,null,null,null,null,null,null,null,null,null,null,null,null,null,null,null,null,null,null,null,null,null,null,null,null,null,null,null,null,null,null,null,null,null,null,null,null,null,null,null,null,null,null,null,null,null,null,null,null,null,null,null,null,null,null,null,null,null,null,null,null,null,null,null,null,null,null,null,null,null,null,null,null,null,null,null,null,null,null,null,null,null,null,null,null,null,null,null,null,null,null,null,null,null,null,null,null,null,null,null,null,null,null,null,null,null,null,null,null,null,null,null,null,null,null,null,null,null,null,null,null,null,null,null,null,null,null,null,null,null,null,null,null,null,null,null,null,null,null,null,null,null,null,null,null,null,null,null,null,null,null,null,null,null,null,null,null,null,null,null,null,null,null,null,null,null,null,null,null,null,null,null,null,null,null,null,null,null,null,null,null,null,null,null,null,null,null,null,null,null,null,null,null,null,null,null,null,null,null,null,null,null,null,true]
[null,11,null,null,null,null,null,null,null,null,null,null,null,null,null,null,null,null,null,null,null,null,null,null,null,null,null,null,null,null,null,null,null,null,null,null,null,null,null,null,null,null,null,null,null,null,null,null,null,0]
[null,12,null,null,null,null,null,null,null,null,null,null,null,null,null,null,null,null,null,null,null,null,null,null,null,null,null,null,null,null,null,null,null,null,null,null,null,null,null,null,null,null,null,null,null,null,null,null,null,0]
[null,13,null,null,null,null,null,null,null,null,null,null,null,null,null,null,null,null,null,null,null,null,null,null,null,null,null,null,null,null,null,null,null,null,null,null,null,null,null,null,null,null,null,null,null,null,null,null,null,0]
[null,null,null,null,null,null,null,null,null,null,null,null,null,null,null,null,null,null,null,null,null,null,null,null,null,null,null,null,null,null,null,null,null,null,null,null,null,null,null,null,null,null,null,null,null,null,null,null,null,{"$f":"SUM(AX11:AX23)","v":0},{"$f":"AX24-1","v":-1}]
[null,null,null,null,null,"Off","1«","2«","3«","4«"]
[null,"B","Type in the Title Desription B here",null,null,"Off",null,null,null,null,null,null,null,null,null,null,null,null,null,null,null,null,null,null,null,null,null,null,null,null,null,null,null,null,null,null,null,null,null,null,null,null,null,null,null,null,null,"Sel Wgt",{"$f":"IFERROR(VALUE(LEFT(F26,1))+1,1)","v":1},{"$f":"AW26-1","v":0},{"$f":"AX26/AX61*100","v":{"$error":"#DIV/0!"}},{"$f":"IFERROR(AY26,\"N/A\")","v":"N/A"}]
["(Zero)Worst <--- Rank ---> Best(Full)","Best = 1",null,null,null,null,null,{"$f":"IF(AZ26=0,\"N/A\",AZ26)","v":"N/A"},null,null,{"$f":"IF(H27=\"N/A\",\"N/A\",AZ27)","v":"N/A"},null,null,null,null,null,null,null,null,null,null,null,null,null,null,null,null,null,null,null,null,null,null,null,null,null,null,null,null,null,null,null,null,null,null,null,null,"Sel Rank",1,{"$f":"IF(C27=\"\",0,1)","v":0},{"$f":"AW27-(14-AX40)","v":-13},{"$f":"IFERROR(AY26*AY28/AY40,\"N/A\")","v":"N/A"},{"$f":"IF(AZ27=\"N/A\",0,1)","v":0}]
[null,2,null,null,null,null,null,null,null,null,null,null,null,null,null,null,null,null,null,null,null,null,null,null,null,null,null,null,null,null,null,null,null,null,null,null,null,null,null,null,null,null,null,null,null,null,null,null,null,0,{"$f":"IF(AY27<0,0,AY27)","v":0}]
[null,3,null,null,null,null,null,null,null,null,null,null,null,null,null,null,null,null,null,null,null,null,null,null,null,null,null,null,null,null,null,null,null,null,null,null,null,null,null,null,null,null,null,null,null,null,null,null,null,0]
[null,4,null,null,null,null,null,null,null,null,null,null,null,null,null,null,null,null,null,null,null,null,null,null,null,null,null,null,null,null,null,null,null,null,null,null,null,null,null,null,null,null,null,null,null,null,null,null,null,0]
[null,5,null,null,null,null,null,null,null,null,null,null,null,null,null,null,null,null,null,null,null,null,null,null,null,null,null,null,null,null,null,null,null,null,null,null,null,null,null,null,null,null,null,null,null,null,null,null,null,0]
[null,6,null,null,null,null,null,null,null,null,null,null,null,null,null,null,null,null,null,null,null,null,null,null,null,null,null,null,null,null,null,null,null,null,null,null,null,null,null,null,null,null,null,null,null,null,null,null,null,0]
[null,7,null,null,null,null,null,null,null,null,null,null,null,null,null,null,null,null,null,null,null,null,null,null,null,null,null,null,null,null,null,null,null,null,null,null,null,null,null,null,null,null,null,null,null,null,null,null,null,0]
[null,8,null,null,null,null,null,null,null,null,null,null,null,null,null,null,null,null,null,null,null,null,null,null,null,null,null,null,null,null,null,null,null,null,null,null,null,null,null,null,null,null,null,null,null,null,null,null,null,0]
[null,9,null,null,null,null,null,null,null,null,null,null,null,null,null,null,null,null,null,null,null,null,null,null,null,null,null,null,null,null,null,null,null,null,null,null,null,null,null,null,null,null,null,null,null,null,null,null,null,0]
[null,10,null,null,null,null,null,null,null,null,null,null,null,null,null,null,null,null,null,null,null,null,null,null,null,null,null,null,null,null,null,null,null,null,null,null,null,null,null,null,null,null,null,null,null,null,null,null,null,0]
[null,11,null,null,null,null,null,null,null,null,null,null,null,null,null,null,null,null,null,null,null,null,null,null,null,null,null,null,null,null,null,null,null,null,null,null,null,null,null,null,null,null,null,null,null,null,null,null,null,0]
[null,12,null,null,null,null,null,null,null,null,null,null,null,null,null,null,null,null,null,null,null,null,null,null,null,null,null,null,null,null,null,null,null,null,null,null,null,null,null,null,null,null,null,null,null,null,null,null,null,0]
[null,13,null,null,null,null,null,null,null,null,null,null,null,null,null,null,null,null,null,null,null,null,null,null,null,null,null,null,null,null,null,null,null,null,null,null,null,null,null,null,null,null,null,null,null,null,null,null,null,0]
[null,null,null,null,null,null,null,null,null,null,null,null,null,null,null,null,null,null,null,null,null,null,null,null,null,null,null,null,null,null,null,null,null,null,null,null,null,null,null,null,null,null,null,null,null,null,null,null,null,{"$f":"SUM(AX27:AX39)","v":0},{"$f":"AX40-1","v":-1}]
[null,null,null,null,null,"Off","1«","2«","3«","4«"]
[null,"C","Type in the Title Desription C here",null,null,"Off",null,null,null,null,null,null,null,null,null,null,null,null,null,null,null,null,null,null,null,null,null,null,null,null,null,null,null,null,null,null,null,null,null,null,null,null,null,null,null,null,null,"Sel Wgt",{"$f":"IFERROR(VALUE(LEFT(F42,1))+1,1)","v":1},{"$f":"AW42-1","v":0},{"$f":"AX42/AX61*100","v":{"$error":"#DIV/0!"}},{"$f":"IFERROR(AY42,\"N/A\")","v":"N/A"}]
["(Zero)Worst <--- Rank ---> Best(Full)","Best = 1",null,null,null,null,null,{"$f":"IF(AZ42=0,\"N/A\",AZ42)","v":"N/A"},null,null,{"$f":"IF(H43=\"N/A\",\"N/A\",AZ43)","v":"N/A"},null,null,null,null,null,null,null,null,null,null,null,null,null,null,null,null,null,null,null,null,null,null,null,null,null,null,null,null,null,null,null,null,null,null,null,null,"Sel Rank",1,{"$f":"IF(C43=\"\",0,1)","v":0},{"$f":"AW43-(14-AX60)","v":-13},{"$f":"IFERROR(AY42*AY44/AY60,\"N/A\")","v":"N/A"},{"$f":"IF(AZ43=\"N/A\",0,1)","v":0}]
[null,2,null,null,null,null,null,null,null,null,null,null,null,null,null,null,null,null,null,null,null,null,null,null,null,null,null,null,null,null,null,null,null,null,null,null,null,null,null,null,null,null,null,null,null,null,null,null,null,0,{"$f":"IF(AY43<0,0,AY43)","v":0}]
[null,3,null,null,null,null,null,null,null,null,null,null,null,null,null,null,null,null,null,null,null,null,null,null,null,null,null,null,null,null,null,null,null,null,null,null,null,null,null,null,null,null,null,null,null,null,null,null,null,0]
[null,4,null,null,null,null,null,null,null,null,null,null,null,null,null,null,null,null,null,null,null,null,null,null,null,null,null,null,null,null,null,null,null,null,null,null,null,null,null,null,null,null,null,null,null,null,null,null,null,0]
[null,5,null,null,null,null,null,null,null,null,null,null,null,null,null,null,null,null,null,null,null,null,null,null,null,null,null,null,null,null,null,null,null,null,null,null,null,null,null,null,null,null,null,null,null,null,null,null,null,0]
[null,6,null,null,null,null,null,null,null,null,null,null,null,null,null,null,null,null,null,null,null,null,null,null,null,null,null,null,null,null,null,null,null,null,null,null,null,null,null,null,null,null,null,null,null,null,null,null,null,0]
[null,7,null,null,null,null,null,null,null,null,null,null,null,null,null,null,null,null,null,null,null,null,null,null,null,null,null,null,null,null,null,null,null,null,null,null,null,null,null,null,null,null,null,null,null,null,null,null,null,0]
[null,8,null,null,null,null,null,null,null,null,null,null,null,null,null,null,null,null,null,null,null,null,null,null,null,null,null,null,null,null,null,null,null,null,null,null,null,null,null,null,null,null,null,null,null,null,null,null,null,0]
[null,9,null,null,null,null,null,null,null,null,null,null,null,null,null,null,null,null,null,null,null,null,null,null,null,null,null,null,null,null,null,null,null,null,null,null,null,null,null,null,null,null,null,null,null,null,null,null,null,0]
[null,10,null,null,null,null,null,null,null,null,null,null,null,null,null,null,null,null,null,null,null,null,null,null,null,null,null,null,null,null,null,null,null,null,null,null,null,null,null,null,null,null,null,null,null,null,null,null,null,0]
[null,11,null,null,null,null,null,null,null,null,null,null,null,null,null,null,null,null,null,null,null,null,null,null,null,null,null,null,null,null,null,null,null,null,null,null,null,null,null,null,null,null,null,null,null,null,null,null,null,0]
[null,12,null,null,null,null,null,null,null,null,null,null,null,null,null,null,null,null,null,null,null,null,null,null,null,null,null,null,null,null,null,null,null,null,null,null,null,null,null,null,null,null,null,null,null,null,null,null,null,0]
[null,13,null,null,null,null,null,null,null,null,null,null,null,null,null,null,null,null,null,null,null,null,null,null,null,null,null,null,null,null,null,null,null,null,null,null,null,null,null,null,null,null,null,null,null,null,null,null,null,0]
[null,null,null,null,null,null,null,null,null,null,{"$f":"BA62","v":"N/A"}]
[]
[null,null,null,null,null,null,null,null,null,"Use Base:",100]
[]
[null,null,null,null,null,null,"A Form by Leadersense Consulting & Systems Sdn Bhd",null,null,null,null,null,null,null,null,null,null,null,null,null,null,null,null,null,null,null,null,null,null,null,null,null,null,null,null,null,null,null,null,null,null,null,null,null,null,null,null,null,null,{"$f":"SUM(AX43:AX55)","v":0},{"$f":"AX60-1","v":-1}]
[null,null,null,null,null,"Off",null,null,null,null,null,null,null,null,null,null,null,null,null,null,null,null,null,null,null,null,null,null,null,null,null,null,null,null,null,null,null,null,null,null,null,null,null,null,null,null,null,null,"Weight x",{"$f":"AX10+AX26+AX42","v":0},null,null,{"$f":"BA11+BA27+BA43","v":0}]
[null,null,null,null,null,"1x ⍟",null,null,null,null,null,null,null,null,null,null,null,null,null,null,null,null,null,null,null,null,null,null,null,null,null,null,null,null,null,null,null,null,null,null,null,null,null,null,null,null,null,null,null,null,null,{"$f":"(AZ11+AZ27+AZ43)*BA61/BA61","v":{"$error":"#VALUE!"}},{"$f":"IFERROR(AZ62,\"N/A\")","v":"N/A"}]
[null,null,null,null,null,"2x ⍟⍟"]
[null,null,null,null,null,"3x ⍟⍟⍟"]
[null,null,null,null,null,"4x ⍟⍟⍟⍟"]

{"sheet":"CListBM","index":4,"n_rows":48,"n_cols":298,"rows_kept":48,"cut":false,"hidden":false,"merged":[[38,1,38,2],[38,4,38,7],[38,14,38,16],[38,18,38,21],[38,23,38,26],[36,1,36,2],[36,4,36,7],[36,14,36,16],[36,18,36,21],[36,23,36,26],[37,1,37,2],[37,4,37,7],[37,14,37,16],[37,18,37,21],[37,23,37,26],[34,1,34,2],[34,4,34,7],[34,14,34,16],[34,18,34,21],[34,23,34,26],[35,1,35,2],[35,4,35,7],[35,14,35,16],[35,18,35,21],[35,23,35,26],[32,1,32,2],[32,4,32,7],[32,14,32,16],[32,18,32,21],[32,23,32,26],[33,1,33,2],[33,4,33,7],[33,14,33,16],[33,18,33,21],[33,23,33,26],[30,1,30,2],[30,4,30,7],[30,14,30,16],[30,18,30,21],[30,23,30,26],[31,1,31,2],[31,4,31,7],[31,14,31,16],[31,18,31,21],[31,23,31,26],[28,1,28,2],[28,4,28,7],[28,14,28,16],[28,18,28,21],[28,23,28,26],[29,1,29,2],[29,4,29,7],[29,14,29,16],[29,18,29,21],[29,23,29,26],[26,1,26,2],[26,4,26,7],[26,14,26,16],[26,18,26,21],[26,23,26,26],[27,1,27,2],[27,4,27,7],[27,14,27,16],[27,18,27,21],[27,23,27,26],[24,1,24,2],[24,4,24,7],[24,14,24,16],[24,18,24,21],[24,23,24,26],[25,1,25,2],[25,4,25,7],[25,14,25,16],[25,18,25,21],[25,23,25,26],[22,1,22,2],[22,4,22,7],[22,14,22,16],[22,18,22,21],[22,23,22,26],[23,1,23,2],[23,4,23,7],[23,14,23,16],[23,18,23,21],[23,23,23,26],[20,1,20,2],[20,4,20,7],[20,14,20,16],[20,18,20,21],[20,23,20,26],[21,1,21,2],[21,4,21,7],[21,14,21,16],[21,18,21,21],[21,23,21,26],[18,1,18,2],[18,4,18,7],[18,14,18,16],[18,18,18,21],[18,23,18,26],[19,1,19,2],[19,4,19,7],[19,14,19,16],[19,18,19,21],[19,23,19,26],[16,1,16,2],[16,4,16,7],[16,14,16,16],[16,18,16,21],[16,23,16,26],[17,1,17,2],[17,4,17,7],[17,14,17,16],[17,18,17,21],[17,23,17,26],[14,1,14,2],[14,4,14,7],[14,14,14,16],[14,18,14,21],[14,23,14,26],[15,1,15,2],[15,4,15,7],[15,14,15,16],[15,18,15,21],[15,23,15,26],[11,14,11,16],[11,18,11,21],[11,23,11,26],[12,1,12,2],[12,4,12,7],[12,14,12,16],[12,18,12,21],[12,23,12,26],[13,1,13,2],[13,4,13,7],[13,14,13,16],[13,18,13,21],[13,23,13,26],[7,32,8,32],[8,1,8,2],[9,1,9,2],[9,4,9,7],[9,14,9,16],[9,18,9,21],[9,23,9,26],[9,32,38,32],[5,1,7,1],[5,15,5,16],[5,19,5,20],[5,24,5,25],[7,4,7,7],[7,11,7,12],[7,14,7,16],[7,18,7,21],[7,23,7,26],[10,1,10,2],[10,4,10,7],[10,14,10,16],[10,18,10,21],[10,23,10,26],[11,1,11,2],[11,4,11,7],[0,4,0,8],[0,11,0,25],[1,11,1,12],[2,11,3,26],[4,15,4,16],[4,19,4,20],[4,24,4,25],[7,28,8,28],[7,30,8,30]]}
[null,"Simple CHECKLIST Simpeo Benchmarks Series",null,null,{"$f":"YEAR(TODAY())","v":2022},null,null,null,null,null,null,"PERFORMA INCORPORATION LIMITED"]
[null,"Name:",null,null,null,null,null,null,null,"KPI ID:",null,{"$f":"IF(P2,O2,\"\")","v":""},null,{"$f":"MID(CELL(\"filename\",A2),FIND(\"]\",CELL(\"filename\",A2))+1,255)","v":"CListBM"},{"$f":"LEFT(N2,5)","v":"CList"},{"$f":"IF(LEN(N2)=5,TRUE,FALSE)","v":false},null,null,null,null,null,null,null,null,null,null,null,null,null,null,null,null,null,null,{"$f":"IF(AI4=\"N/A\",\"N/A\",\"Ok\")","v":"N/A"}]
[null,"Position:",null,null,null,null,null,null,null,"KPI Description:",null,null,null,null,null,null,null,null,null,null,null,null,null,null,null,null,null,null,null,null,null,null,null,null,{"$f":"IF(AI5=\"N/A\",\"N/A\",\"Ok\")","v":"N/A"}]
[null,"Department:",null,null,null,null,null,null,null,null,null,null,null,null,null,null,null,null,null,null,null,null,null,null,null,null,null,null,null,null,null,null,null,null,{"$f":"IFERROR(CHOOSE(L5,\"L\",\"M\",\"N\",\"O\",\"P\",\"Q\",\"R\",\"S\",\"T\",\"U\",\"V\",\"W\",\"X\",\"Y\",\"Z\",\"AA\",\"AB\",\"AC\",\"AD\",\"AE\",\"AF\",\"AG\",\"AH\",\"AI\",\"AJ\",\"AK\",\"AL\",\"AM\",\"AN\",\"AO\",\"AP\",\"AQ\",\"AR\",\"AS\",\"AT\",\"AU\",\"AV\",\"AW\",\"AX\",\"AY\",\"AZ\",\"BA\",\"BB\",\"BC\",\"BD\",\"BE\",\"BF\",\"BG\",\"BH\",\"BI\",\"BJ\",\"BK\",\"BK\"),\"N/A\")","v":"N/A"}]
[null,"Score:",null,null,null,null,null,null,null,"Selected Week:",null,null,"%",null,null,"%",null,null,null,"%",null,null,null,null,"%",null,null,null,null,null,"%",null,null,null,{"$f":"IFERROR(CHOOSE(RIGHT(L2,2),5,6,7,8,9,10,11,12,13,14,15,16,17,18,19),\"N/A\")","v":"N/A"}]
[null,{"$f":"IFERROR(AE40/100*AE42,\"\")","v":""},null,null,null,null,null,null,null,null,null,null,70,null,null,10,null,null,null,10,null,null,null,null,10,null,null,null,null,null,{"$f":"M6+P6+T6+Y6","v":100},null,null,null,null,null,null,null,null,null,null,null,null,null,null,null,null,null,null,null,null,null,"L5"]
[]
[null,null,null,null,"Weight Size",null,null,null,null,null,null,"Task Completion",null,null,"Timeliness",null,null,null,"Work Quality",null,null,null,null,"Meet Budget",null,null,null,null,"  Forget",null,"Line\nScore",null,"Remarks"]
["No","Task Description",null,null,"⍟ 1x","⍟⍟ 2x","⍟⍟⍟ 3x","⍟⍟⍟⍟ 4x",null,"Weight\n%",null,"Deadline","Done",null,"✪  Poor","✪✪ Fair","✪✪✪Meet",null,"Not Used","✪  Poor","✪✪ Fair","✪✪✪Meet",null,"Not Used","✪  Poor","✪✪ Fair","✪✪✪Meet"]
[1,null,null,null,null,null,null,null,{"$f":"IF(OR(B10=\"\",AM10),0,AI10)","v":0},{"$f":"I10/I$40*100","v":0},null,null,null,null,null,null,null,null,null,null,null,null,null,null,null,null,null,null,null,null,{"$f":"IFERROR(J10*AW10,\"N/A\")","v":0},null,null,null,{"$f":"IFERROR(VALUE(LEFT($E10,1)),0)","v":0},{"$f":"IFERROR(VALUE(LEFT($O10,1)),0)","v":0},{"$f":"IFERROR(VALUE(LEFT($S10,1)),0)","v":0},{"$f":"IFERROR(VALUE(LEFT($X10,1)),0)","v":0},false,{"$f":"IF($AX10,M$6,0)","v":0},{"$f":"P$6","v":10},{"$f":"IF(AK10=0,0,T$6)","v":0},{"$f":"IF(AL10=0,0,Y$6)","v":0},{"$f":"SUM(AN10:AQ10)","v":10},{"$f":"AJ10/3*AO10","v":0},{"$f":"AK10/3*AP10","v":0},{"$f":"AL10/3*AQ10","v":0},{"$f":"IF(AN10<>0,AN10+AS10+AT10+AU10,0)","v":0},{"$f":"IFERROR(AV10/AR10,\"N/A\")","v":0},false]
[2,null,null,null,null,null,null,null,0,{"$f":"I11/I$40*100","v":0},null,null,null,null,null,null,null,null,null,null,null,null,null,null,null,null,null,null,null,null,{"$f":"IFERROR(J11*AW11,\"N/A\")","v":0},null,null,null,{"$f":"IFERROR(VALUE(LEFT($E11,1)),0)","v":0},{"$f":"IFERROR(VALUE(LEFT($O11,1)),0)","v":0},{"$f":"IFERROR(VALUE(LEFT($S11,1)),0)","v":0},{"$f":"IFERROR(VALUE(LEFT($X11,1)),0)","v":0},false,{"$f":"IF($AX11,M$6,0)","v":0},{"$f":"P$6","v":10},{"$f":"IF(AK11=0,0,T$6)","v":0},{"$f":"IF(AL11=0,0,Y$6)","v":0},{"$f":"SUM(AN11:AQ11)","v":10},{"$f":"AJ11/3*AO11","v":0},0,0,{"$f":"IF(AN11<>0,AN11+AS11+AT11+AU11,0)","v":0},{"$f":"IFERROR(AV11/AR11,\"N/A\")","v":0},false]
[3,null,null,null,null,null,null,null,0,0,null,null,null,null,null,null,null,null,null,null,null,null,null,null,null,null,null,null,null,null,0,null,null,null,0,0,0,0,false,0,10,0,0,10,0,0,0,0,0,false]
[4,null,null,null,null,null,null,null,0,0,null,null,null,null,null,null,null,null,null,null,null,null,null,null,null,null,null,null,null,null,0,null,null,null,0,0,0,0,false,0,10,0,0,10,0,0,0,0,0,false]
[5,null,null,null,null,null,null,null,0,0,null,null,null,null,null,null,null,null,null,null,null,null,null,null,null,null,null,null,null,null,0,null,null,null,0,0,0,0,false,0,10,0,0,10,0,0,0,0,0,false]
[6,null,null,null,null,null,null,null,0,0,null,null,null,null,null,null,null,null,null,null,null,null,null,null,null,null,null,null,null,null,0,null,null,null,0,0,0,0,false,0,10,0,0,10,0,0,0,0,0,false]
[7,null,null,null,null,null,null,null,0,0,null,null,null,null,null,null,null,null,null,null,null,null,null,null,null,null,null,null,null,null,0,null,null,null,0,0,0,0,false,0,10,0,0,10,0,0,0,0,0,false]
[8,null,null,null,null,null,null,null,0,0,null,null,null,null,null,null,null,null,null,null,null,null,null,null,null,null,null,null,null,null,0,null,null,null,0,0,0,0,false,0,10,0,0,10,0,0,0,0,0,false]
[9,null,null,null,null,null,null,null,0,0,null,null,null,null,null,null,null,null,null,null,null,null,null,null,null,null,null,null,null,null,0,null,null,null,0,0,0,0,false,0,10,0,0,10,0,0,0,0,0,false]
[10,null,null,null,null,null,null,null,0,0,null,null,null,null,null,null,null,null,null,null,null,null,null,null,null,null,null,null,null,null,0,null,null,null,0,0,0,0,false,0,10,0,0,10,0,0,0,0,0,false]
[11,null,null,null,null,null,null,null,0,0,null,null,null,null,null,null,null,null,null,null,null,null,null,null,null,null,null,null,null,null,0,null,null,null,0,0,0,0,false,0,10,0,0,10,0,0,0,0,0,false,null,null,null,null,null,null,null,null,null,null,null,null,null,null,null,null,null,null,null,null,null,null,null,null,null,null,null,null,null,null,null,null,null,null,null,null,null,null,null,null,null,null,null,null,null,null,null,null,null,null,null,null,null,null,null,null,null,null,null,null,null,null,null,null,null,null,null,null,null,null,null,null,null,null,null,null,null,null,null,null,null,null,null,null,null,null,null,null,null,null,null,null,null,null,null,null,null,null,null,null,null,null,null,null,null,null,null,null,null,null,null,null,null,null,null,null,null,null,null,null,null,null,null,null,null,null,null,null,null,null,null,null,null,null,null,null,null,null,null,null,null,null,null,null,null,null,null,null,null,null,null,null,null,null,null,null,null,null,null,null,null,null,null,null,null,null,null,null,null,null,null,null,null,null,null,null,null,null,null,null,null,null,null,null,null,null,null,null,null,null,null,null,null,null,null,null,null,null,null,null,null,null,null,null,null,null,null,null,null,null,null,null,null,null,null,null,null,null,null,null,null,null,null,null,null,null,null,null,null,null,null,null,null,null,null,null,null,null,null,null,null,null,null,null,null,null,null,true]
[12,null,null,null,null,null,null,null,0,0,null,null,null,null,null,null,null,null,null,null,null,null,null,null,null,null,null,null,null,null,0,null,null,null,0,0,0,0,false,0,10,0,0,10,0,0,0,0,0,false]
[13,null,null,null,null,null,null,null,0,0,null,null,null,null,null,null,null,null,null,null,null,null,null,null,null,null,null,null,null,null,0,null,null,null,0,0,0,0,false,0,10,0,0,10,0,0,0,0,0,false]
[14,null,null,null,null,null,null,null,0,0,null,null,null,null,null,null,null,null,null,null,null,null,null,null,null,null,null,null,null,null,0,null,null,null,0,0,0,0,false,0,10,0,0,10,0,0,0,0,0,false]
[15,null,null,null,null,null,null,null,0,0,null,null,null,null,null,null,null,null,null,null,null,null,null,null,null,null,null,null,null,null,0,null,null,null,0,0,0,0,false,0,10,0,0,10,0,0,0,0,0,false]
[16,null,null,null,null,null,null,null,0,0,null,null,null,null,null,null,null,null,null,null,null,null,null,null,null,null,null,null,null,null,0,null,null,null,0,0,0,0,false,0,10,0,0,10,0,0,0,0,0,false]
[17,null,null,null,null,null,null,null,0,0,null,null,null,null,null,null,null,null,null,null,null,null,null,null,null,null,null,null,null,null,0,null,null,null,0,0,0,0,false,0,10,0,0,10,0,0,0,0,0,false]
[18,null,null,null,null,null,null,null,0,0,null,null,null,null,null,null,null,null,null,null,null,null,null,null,null,null,null,null,null,null,0,null,null,null,0,0,0,0,false,0,10,0,0,10,0,0,0,0,0,false]
[19,null,null,null,null,null,null,null,0,0,null,null,null,null,null,null,null,null,null,null,null,null,null,null,null,null,null,null,null,null,0,null,null,null,0,0,0,0,false,0,10,0,0,10,0,0,0,0,0,false]
[20,null,null,null,null,null,null,null,0,0,null,null,null,null,null,null,null,null,null,null,null,null,null,null,null,null,null,null,null,null,0,null,null,null,0,0,0,0,false,0,10,0,0,10,0,0,0,0,0,false]
[21,null,null,null,null,null,null,null,0,0,null,null,null,null,null,null,null,null,null,null,null,null,null,null,null,null,null,null,null,null,0,null,null,null,0,0,0,0,false,0,10,0,0,10,0,0,0,0,0,false]
[22,null,null,null,null,null,null,null,0,0,null,null,null,null,null,null,null,null,null,null,null,null,null,null,null,null,null,null,null,null,0,null,null,null,0,0,0,0,false,0,10,0,0,10,0,0,0,0,0,false]
[23,null,null,null,null,null,null,null,0,0,null,null,null,null,null,null,null,null,null,null,null,null,null,null,null,null,null,null,null,null,0,null,null,null,0,0,0,0,false,0,10,0,0,10,0,0,0,0,0,false]
[24,null,null,null,null,null,null,null,0,0,null,null,null,null,null,null,null,null,null,null,null,null,null,null,null,null,null,null,null,null,0,null,null,null,0,0,0,0,false,0,10,0,0,10,0,0,0,0,0,false]
[25,null,null,null,null,null,null,null,0,0,null,null,null,null,null,null,null,null,null,null,null,null,null,null,null,null,null,null,null,null,0,null,null,null,0,0,0,0,false,0,10,0,0,10,0,0,0,0,0,false]
[26,null,null,null,null,null,null,null,0,0,null,null,null,null,null,null,null,null,null,null,null,null,null,null,null,null,null,null,null,null,0,null,null,null,0,0,0,0,false,0,10,0,0,10,0,0,0,0,0,false]
[27,null,null,null,null,null,null,null,0,0,null,null,null,null,null,null,null,null,null,null,null,null,null,null,null,null,null,null,null,null,0,null,null,null,0,0,0,0,false,0,10,0,0,10,0,0,0,0,0,false]
[28,null,null,null,null,null,null,null,0,0,null,null,null,null,null,null,null,null,null,null,null,null,null,null,null,null,null,null,null,null,0,null,null,null,0,0,0,0,false,0,10,0,0,10,0,0,0,0,0,false]
[29,null,null,null,null,null,null,null,0,0,null,null,null,null,null,null,null,null,null,null,null,null,null,null,null,null,null,null,null,null,0,null,null,null,0,0,0,0,false,0,10,0,0,10,0,0,0,0,0,false]
[30,null,null,null,null,null,null,null,0,0,null,null,null,null,null,null,null,null,null,null,null,null,null,null,null,null,null,null,null,null,0,null,null,null,0,0,0,0,false,0,10,0,0,10,0,0,0,0,0,false]
[null,null,null,null,null,null,null,null,{"$f":"IF(SUM(I10:I39)=0,1,SUM(I10:I39))","v":1},{"$f":"SUM(J10:J39)","v":0},null,null,null,null,null,null,null,null,null,null,null,null,null,null,null,null,null,null,null,null,{"$f":"IFERROR(SUM(AE10:AE39)/J40*100,\"N/A\")","v":"N/A"}]
[]
[null,null,null,null,null,null,null,null,null,null,null,null,null,null,null,null,null,null,null,null,null,null,null,null,null,null,null,null,"Use Base:",null,100]
[]
[null,null,null,null,null,null,null,null,null,null,null,null,null,null,null,null,"A form by Leadersense Consulting & Systems Sdn Bhd @2017"]
[null,null,null,null,"1x ⍟",null,null,null,null,null,null,null,null,null,"1✪",null,null,null,"Not Used",null,null,null,null,"Not Used"]
[null,null,null,null,"2x ⍟⍟",null,null,null,null,null,null,null,null,null,"2✪✪",null,null,null,"1✪",null,null,null,null,"1✪"]
[null,null,null,null,"3x ⍟⍟⍟",null,null,null,null,null,null,null,null,null,"3✪✪✪",null,null,null,"2✪✪",null,null,null,null,"2✪✪"]
[null,null,null,null,"4x ⍟⍟⍟⍟",null,null,null,null,null,null,null,null,null,null,null,null,null,"3✪✪✪",null,null,null,null,"3✪✪✪"]